bitfinex-derivatives/quotes_SOLF0:USTF0_20250706
["timestamp","ask_amount","ask_price","bid_price","bid_amount"]
[1751808215934,2.2217,149.19,149.12,50.38]
[1751808216339,2.2217,149.19,148.92,2591.0795]
[1751808216644,2.2217,149.19,148.99,836.14]
[1751808216843,2.2217,149.19,149.0,50.38]
[1751808217249,6.7033,149.15,149.08,6.7058]
[1751808217636,2.2217,149.19,149.07,50.38]
[1751808217844,6.7029,149.16,149.1,6.7048]
[1751808218339,6.7021,149.17,149.11,6.7046]
[1751808218539,2.2217,149.19,149.07,50.38]
[1751808218739,2.2217,149.19,149.07,112.38]
[1751808219043,6.7028,149.16,149.1,6.7049]
[1751808219341,2.2217,149.19,149.07,112.38]
[1751808219553,6.7024,149.17,149.07,112.38]
[1751808219845,2.2217,149.19,149.07,112.38]
[1751808220144,2.2217,149.19,149.09,6.7055]
[1751808220345,2.2217,149.19,149.08,50.38]
[1751808221439,6.7026,149.16,149.11,6.7046]
[1751808221641,6.7026,149.16,149.08,50.38]
[1751808222038,2.2217,149.19,149.08,50.38]
[1751808223047,6.7021,149.17,149.11,6.7045]
[1751808223239,2.2217,149.19,148.97,33.5215]
[1751808223436,2.2217,149.19,148.98,836.06]
[1751808223642,2.2217,149.19,148.99,33.5204]
[1751808223942,6.7018,149.18,149.12,6.704]
[1751808224538,2.2217,149.19,149.12,6.704]
[1751808224742,6.7024,149.17,149.11,57.1047]
[1751808225044,6.7024,149.17,149.11,50.4]
[1751808225240,2.2217,149.19,149.11,50.4]
[1751808225437,6.7019,149.18,149.12,6.7043]
[1751808226239,6.7022,149.17,149.12,6.7043]
[1751808226446,2.2217,149.19,149.11,57.1047]
[1751808226844,6.7024,149.17,149.11,57.1047]
[1751808228541,6.7025,149.16,149.11,57.1047]
[1751808229045,6.7037,149.14,149.11,50.4]
[1751808229441,2.2217,149.19,149.11,50.4]
[1751808229643,6.7029,149.16,149.11,57.1044]
[1751808229847,8.62727981,149.15,149.11,50.4]
[1751808230049,2.2217,149.19,149.11,50.4]
[1751808230248,6.7028,149.16,149.11,57.1044]
[1751808230450,13.36481224,149.15,149.11,57.1044]
[1751808230748,13.37237674,149.14,149.11,50.4]
[1751808230946,8.63970645,149.13,149.11,50.4]
[1751808231143,14.65777529,149.19,149.09,50.8]
[1751808231144,8.66283792,149.12,149.09,50.8]
[1751808231348,8.66284202,149.11,148.99,13.4204]
[1751808231553,8.66284202,149.1,149.01,578.82]
[1751808231748,8.66284202,149.09,149.01,578.82]
[1751808231949,6.7046,149.12,149.07,6.7066]
[1751808232148,13.40314828,149.11,149.07,6.7066]
[1751808232348,13.40314828,149.1,149.07,6.7066]
[1751808232548,8.66475087,149.09,149.07,6.7066]
[1751808232748,6.7046,149.12,149.07,6.7066]
[1751808233050,13.40192898,149.11,149.07,6.7066]
[1751808233245,8.66335287,149.1,149.05,50.8]
[1751808233450,12.43607529,149.17,149.05,50.8]
[1751808233650,13.40111785,149.16,149.05,50.8]
[1751808233844,13.40111785,149.15,149.05,50.8]
[1751808234047,13.40111785,149.14,149.05,50.8]
[1751808234248,13.40111785,149.13,149.09,6.7054]
[1751808234448,8.66288845,149.12,149.05,50.8]
[1751808234648,8.66288845,149.11,149.05,50.8]
[1751808234950,6.7033,149.15,149.1,6.705]
[1751808235151,13.39870715,149.14,149.1,6.705]
[1751808235351,13.39870715,149.13,149.1,6.705]
[1751808235554,8.66220035,149.12,149.09,6.7055]
[1751808235750,8.66220035,149.11,149.09,6.7055]
[1751808236058,8.63308055,149.1,149.05,50.82]
[1751808236357,12.43607529,149.16,149.05,50.82]
[1751808236550,6.7043,149.13,149.08,6.7059]
[1751808236849,8.63105431,149.12,149.05,50.82]
[1751808237044,8.63105431,149.11,149.1,6.7049]
[1751808237242,6.7033,149.15,149.05,50.82]
[1751808237450,13.31429046,149.14,149.05,50.82]
[1751808237650,13.31429046,149.13,149.11,6.7044]
[1751808237853,6.7027,149.16,149.11,6.7044]
[1751808238054,13.31318047,149.15,149.11,6.7044]
[1751808238253,13.31318047,149.14,149.1,50.82]
[1751808238456,8.62794072,149.13,149.1,50.82]
[1751808238652,6.7035,149.14,149.1,57.5251]
[1751808238852,8.62832111,149.13,149.1,57.5251]
[1751808239053,6.7035,149.14,149.1,57.5251]
[1751808239467,6.7035,149.14,149.1,50.82]
[1751808239866,6.7032,149.15,149.1,50.82]
[1751808240065,8.6285759,149.14,149.12,6.7041]
[1751808240364,6.7028,149.16,149.12,6.7041]
[1751808240567,8.6314839,149.15,149.1,50.82]
[1751808240761,8.6314839,149.14,149.1,50.82]
[1751808240960,53.0417,149.19,149.1,50.82]
[1751808241169,13.30505658,149.18,149.1,50.82]
[1751808241371,13.30505658,149.17,149.1,50.82]
[1751808241569,8.63149621,149.16,149.1,50.82]
[1751808241769,8.63149621,149.15,149.1,50.82]
[1751808242070,53.0417,149.19,149.11,6.7047]
[1751808242268,13.30797065,149.18,149.11,6.7047]
[1751808242468,8.63422567,149.17,149.1,50.82]
[1751808242665,8.63422567,149.16,149.1,50.82]
[1751808242859,2.2217,149.19,149.1,50.82]
[1751808243066,13.30911452,149.18,149.1,50.82]
[1751808243261,6.7024,149.17,149.1,50.82]
[1751808243460,2.2217,149.19,149.1,50.82]
[1751808243869,6.7027,149.16,149.12,6.704]
[1751808244971,6.7023,149.17,149.13,6.7038]
[1751808245871,2.2111,149.22,149.12,6.7042]
[1751808246072,13.36347102,149.21,149.12,6.7042]
[1751808246268,8.64438874,149.2,149.12,6.7042]
[1751808246469,2.2111,149.22,149.12,6.7042]
[1751808246664,8.64827301,149.21,149.12,6.7042]
[1751808246869,2.2111,149.22,149.13,50.82]
[1751808247063,6.7025,149.17,149.13,50.82]
[1751808247671,4.72391374,149.21,149.13,50.82]
[1751808247971,8.68159086,149.2,149.13,50.82]
[1751808248172,2.2111,149.22,149.1,6.7049]
[1751808248467,13.40926869,149.21,149.11,50.82]
[1751808248769,11.49739292,149.22,149.07,205.64]
[1751808248770,6.7028,149.16,149.12,57.5242]
[1751808249371,6.703,149.15,149.12,50.82]
[1751808250274,6.7026,149.16,149.12,50.82]
[1751808251271,11.49739292,149.22,149.12,50.82]
[1751808251468,13.44615716,149.21,149.12,50.82]
[1751808251663,2.3768,149.24,149.17,6.7018]
[1751808251861,6.7002,149.22,149.17,57.5218]
[1751808252068,8.69073155,149.21,149.17,50.82]
[1751808252272,6.7001,149.22,149.18,6.7016]
[1751808252474,8.69779822,149.21,149.17,50.82]
[1751808252673,2.3768,149.24,149.17,50.82]
[1751808252870,13.45491197,149.23,149.17,50.82]
[1751808253176,6.7003,149.21,149.17,50.82]
[1751808253972,2.3768,149.24,149.17,50.82]
[1751808254174,13.46003171,149.23,149.17,50.82]
[1751808254372,8.70127493,149.22,149.17,50.82]
[1751808254573,9.28629292,149.25,149.17,50.82]
[1751808254574,8.70127493,149.21,149.17,50.82]
[1751808254778,6.7006,149.21,149.17,50.82]
[1751808255477,6.701,149.2,149.17,50.82]
[1751808256380,6.7005,149.21,149.17,57.522]
[1751808257882,6.7009,149.2,149.17,50.82]
[1751808259380,6.7005,149.21,149.17,57.5221]
[1751808259577,9.28629292,149.24,149.17,50.82]
[1751808259778,13.57413261,149.23,149.17,50.82]
[1751808259977,20.27423261,149.22,149.18,6.7013]
[1751808260178,8.75493736,149.21,149.18,6.7013]
[1751808260378,6.7001,149.22,149.17,50.82]
[1751808260579,15.47381797,149.21,149.18,6.7013]
[1751808260775,6.7004,149.21,149.18,6.7013]
[1751808261079,62.33929292,149.26,149.17,50.82]
[1751808261278,22.90319618,149.25,149.17,50.82]
[1751808261474,13.61690326,149.24,149.18,6.7016]
[1751808261684,13.61690326,149.23,149.18,6.7016]
[1751808261883,6.7003,149.21,149.17,50.82]
[1751808262082,6.7003,149.21,149.17,57.5218]
[1751808262384,6.7009,149.2,149.11,62.0]
[1751808262585,8.77037018,149.19,149.12,56.7842]
[1751808262775,13.61486755,149.18,149.12,50.08]
[1751808263079,8.77037018,149.17,149.12,50.08]
[1751808263276,8.77037018,149.16,149.12,50.08]
[1751808263478,15.47347018,149.15,149.12,50.08]
[1751808263679,6.7031,149.15,149.12,50.08]
[1751808264172,6.7026,149.16,149.12,50.08]
[1751808264683,15.4763744,149.15,149.12,50.08]
[1751808264885,6.703,149.15,149.12,50.08]
[1751808268285,6.7027,149.16,149.12,56.7843]
[1751808269888,6.7033,149.15,149.12,50.08]
[1751808270487,6.7039,149.13,149.12,50.08]
[1751808270782,4.77615341,149.17,149.08,50.08]
[1751808270991,13.44114572,149.16,149.07,50.08]
[1751808271287,6.7046,149.12,149.07,50.08]
[1751808272489,6.7046,149.12,149.07,56.7863]
[1751808273396,6.7046,149.12,149.08,6.7061]
[1751808273583,6.7041,149.13,149.08,6.7061]
[1751808274390,6.7041,149.13,149.09,6.7055]
[1751808274790,6.7041,149.13,149.07,50.08]
[1751808274994,6.7041,149.13,149.08,6.7059]
[1751808275396,11.74912373,149.18,149.07,50.08]
[1751808275695,8.62246641,149.17,149.07,50.08]
[1751808275895,2.3901,149.18,149.07,50.08]
[1751808276195,8.62195896,149.17,149.07,50.08]
[1751808276389,2.3901,149.18,149.07,50.08]
[1751808276590,8.6219864,149.17,149.07,50.08]
[1751808276894,2.3901,149.18,149.07,50.08]
[1751808277291,6.7026,149.16,149.11,6.7045]
[1751808278191,6.7022,149.17,149.12,56.8039]
[1751808278691,6.7022,149.17,149.13,6.7037]
[1751808279395,6.7022,149.17,149.12,56.8041]
[1751808281095,6.7028,149.16,149.12,50.1]
[1751808282189,6.7028,149.16,149.12,56.8043]
[1751808282390,2.3901,149.18,149.12,50.1]
[1751808282686,8.67049682,149.17,149.12,50.1]
[1751808282889,8.67049682,149.16,149.12,50.1]
[1751808283095,6.7033,149.15,149.12,50.1]
[1751808283298,2.3901,149.18,149.12,50.1]
[1751808283490,13.44957016,149.17,149.12,50.1]
[1751808283690,6.7033,149.15,149.12,50.1]
[1751808284692,6.7027,149.16,149.12,50.1]
[1751808284896,2.3901,149.18,149.12,50.1]
[1751808285196,8.67101328,149.17,149.12,50.1]
[1751808285402,6.7028,149.16,149.12,50.1]
[1751808285689,6.7028,149.16,149.12,56.8043]
[1751808285895,2.3901,149.18,149.12,50.1]
[1751808286086,9.0919,149.18,149.14,6.7031]
[1751808286891,6.7021,149.17,149.13,6.7037]
[1751808287089,2.3901,149.18,149.12,50.1]
[1751808287294,8.66229925,149.17,149.12,50.1]
[1751808287496,2.3901,149.18,149.12,50.1]
[1751808287697,15.36505242,149.17,149.13,6.7038]
[1751808287898,6.7025,149.17,149.13,6.7038]
[1751808288801,2.3901,149.18,149.12,50.1]
[1751808289301,6.7022,149.17,149.13,6.7036]
[1751808289701,2.3901,149.18,149.12,50.1]
[1751808291301,2.2218,149.19,149.12,50.1]
[1751808291799,6.7017,149.18,149.12,50.1]
[1751808292194,8.9232,149.19,149.15,6.7029]
[1751808292404,2.2218,149.19,149.12,50.1]
[1751808292905,6.7017,149.18,149.14,6.7032]
[1751808293098,6.7017,149.18,149.12,50.1]
[1751808293901,2.2218,149.19,149.12,50.1]
[1751808294102,2.3528,149.22,149.12,50.1]
[1751808294298,8.65027673,149.21,149.12,50.1]
[1751808294499,6.702,149.18,149.14,6.7032]
[1751808294804,2.2294,149.23,149.14,6.7032]
[1751808295103,13.45358067,149.22,149.12,50.1]
[1751808295303,13.45358067,149.21,149.12,50.1]
[1751808295603,2.2294,149.23,149.12,50.1]
[1751808295604,6.7016,149.18,149.12,50.1]
[1751808295809,2.2294,149.23,149.12,50.1]
[1751808296102,6.7013,149.19,149.12,50.1]
[1751808296304,6.7013,149.19,149.15,6.7027]
[1751808296504,2.2294,149.23,149.15,6.7027]
[1751808296699,8.65905212,149.22,149.15,6.7027]
[1751808296900,13.47511801,149.21,149.15,6.7027]
[1751808297099,8.65905212,149.2,149.15,6.7027]
[1751808297404,6.7017,149.18,149.14,6.7033]
[1751808300209,11.58842373,149.23,149.12,50.1]
[1751808300403,13.49078541,149.22,149.12,50.1]
[1751808300601,13.49064632,149.21,149.12,50.1]
[1751808300801,6.7013,149.19,149.12,50.1]
[1751808301902,6.7013,149.19,149.15,6.7027]
[1751808302098,6.7017,149.18,149.15,6.7027]
[1751808302498,2.2294,149.23,149.14,6.7033]
[1751808302701,6.7019,149.18,149.14,6.7033]
[1751808303609,6.7019,149.18,149.15,6.7029]
[1751808303909,6.7019,149.18,149.12,50.1]
[1751808304708,6.7019,149.18,149.14,6.7031]
[1751808304910,6.7021,149.17,149.14,6.7031]
[1751808305806,6.7018,149.18,149.14,6.7031]
[1751808306612,22.88835902,149.17,149.05,49.22]
[1751808306807,27.41145902,149.16,149.05,49.22]
[1751808307002,6.7058,149.09,149.05,55.9274]
[1751808307210,6.7058,149.09,149.05,49.22]
[1751808307408,58.59207154,149.15,149.05,49.22]
[1751808307711,6.7052,149.1,149.06,6.7067]
[1751808308303,58.59207154,149.15,149.05,49.22]
[1751808308506,27.01127097,149.14,149.05,49.22]
[1751808308708,27.01127097,149.13,149.02,578.78]
[1751808309007,17.63919943,149.12,149.03,6.7081]
[1751808309200,13.51784481,149.11,149.02,578.78]
[1751808309405,8.68241164,149.1,149.02,578.78]
[1751808309608,6.7064,149.08,149.04,6.7076]
[1751808311412,58.59207154,149.15,149.02,578.78]
[1751808311713,6.7062,149.08,149.03,6.7082]
[1751808311913,6.7062,149.08,149.02,578.78]
[1751808312215,6.7062,149.08,149.03,6.7082]
[1751808312708,6.7066,149.07,149.03,6.7082]
[1751808313214,4.70004764,149.13,149.02,585.4887]
[1751808313512,13.29004324,149.12,149.02,585.4887]
[1751808313712,8.5899956,149.11,149.02,6.7087]
[1751808313915,13.2576956,149.1,149.0,49.24]
[1751808314114,10.8664956,149.09,149.0,49.24]
[1751808314308,6.7062,149.08,149.04,6.7076]
[1751808314514,6.7062,149.08,149.0,49.24]
[1751808314916,6.7062,149.08,149.03,6.7081]
[1751808315115,8.9823,149.09,149.0,49.24]
[1751808315311,8.9823,149.09,149.04,6.7077]
[1751808315716,4.6677,149.1,149.0,49.24]
[1751808315717,9.051,149.1,149.0,49.24]
[1751808315911,2.3456,149.1,149.0,49.24]
[1751808316215,6.706,149.09,149.0,49.24]
[1751808316717,6.706,149.09,149.05,6.7072]
[1751808317416,6.7062,149.08,149.05,6.7072]
[1751808317618,6.7062,149.08,149.0,49.24]
[1751808318619,6.7062,149.08,149.05,6.7074]
[1751808318809,2.2193,149.13,149.0,49.24]
[1751808319415,6.7055,149.1,149.0,49.24]
[1751808319611,6.7055,149.1,149.06,6.7067]
[1751808320013,6.7055,149.1,149.05,48.82]
[1751808320310,6.705,149.11,149.05,48.82]
[1751808320612,2.2193,149.13,149.05,48.82]
[1751808320817,2.2193,149.13,149.08,6.7059]
[1751808321020,2.2193,149.13,149.05,48.82]
[1751808321821,6.7047,149.12,149.08,6.7058]
[1751808322010,2.2193,149.13,149.08,6.7058]
[1751808323023,2.2193,149.13,149.09,6.7056]
[1751808323325,2.2193,149.13,148.96,62.0]
[1751808323625,6.7046,149.12,149.08,6.706]
[1751808324222,6.7046,149.12,149.09,6.7056]
[1751808325321,6.704,149.13,149.06,48.84]
[1751808325521,2.3431,149.14,149.06,48.84]
[1751808325825,6.7046,149.12,149.08,6.7061]
[1751808326224,2.3431,149.14,149.06,48.84]
[1751808327022,6.704,149.13,149.08,6.706]
[1751808327625,2.3431,149.14,149.08,6.706]
[1751808328521,6.7044,149.12,149.08,6.706]
[1751808329022,2.3431,149.14,149.07,6.7064]
[1751808329222,6.7046,149.12,149.06,48.82]
[1751808329424,2.3431,149.14,149.08,6.7059]
[1751808329725,6.7043,149.13,149.08,6.7059]
[1751808330327,6.7044,149.12,149.08,6.7059]
[1751808334037,6.7048,149.11,149.07,6.7063]
[1751808334236,2.3431,149.14,149.06,48.82]
[1751808334631,6.7056,149.1,149.06,48.82]
[1751808335333,6.7058,149.09,149.06,48.82]
[1751808337337,6.7062,149.08,149.06,48.82]
[1751808337535,8.59606616,149.12,149.06,48.82]
[1751808337735,2.3431,149.14,149.06,48.82]
[1751808338038,6.7057,149.1,149.06,48.82]
[1751808339540,6.7057,149.1,149.06,55.527]
[1751808340337,6.705,149.11,149.06,55.527]
[1751808340838,2.3431,149.14,149.06,55.527]
[1751808341038,8.56833801,149.13,149.06,55.527]
[1751808341238,8.57051421,149.12,149.06,48.82]
[1751808341438,2.3431,149.14,149.06,48.82]
[1751808341642,6.7056,149.1,149.06,48.82]
[1751808342441,6.7056,149.1,149.05,6.7073]
[1751808342943,6.7058,149.09,149.05,6.7073]
[1751808343539,6.7058,149.09,149.04,48.84]
[1751808343540,6.7063,149.08,149.04,55.5479]
[1751808344436,6.7063,149.08,149.04,48.84]
[1751808344842,6.7067,149.07,149.04,48.84]
[1751808345039,4.69614338,149.12,148.89,33.5287]
[1751808345241,9.34316722,149.09,148.94,48.84]
[1751808345545,9.34316722,149.07,148.94,55.5522]
[1751808345747,6.7105,148.99,148.94,55.5522]
[1751808345941,48.2,149.03,148.94,48.84]
[1751808346144,10.95871446,149.02,148.94,48.84]
[1751808346343,6.7112,148.97,148.9,48.2]
[1751808346543,2.3666,149.01,148.9,48.2]
[1751808347446,9.0762,149.01,148.96,6.7113]
[1751808347746,2.3666,149.01,148.9,48.2]
[1751808348140,6.7099,149.0,148.95,6.7117]
[1751808348339,2.3666,149.01,148.95,6.7117]
[1751808348851,6.7105,148.99,148.94,6.7123]
[1751808349055,2.3666,149.01,148.9,48.2]
[1751808351153,6.7115,148.97,148.9,48.2]
[1751808351757,6.7115,148.97,148.92,6.7129]
[1751808352251,6.7115,148.97,148.93,8.38826926]
[1751808352456,2.3666,149.01,148.93,1.67556926]
[1751808352954,6.7105,148.99,148.94,6.7121]
[1751808353154,2.3666,149.01,148.93,1.67556926]
[1751808353456,6.71,149.0,148.95,6.7117]
[1751808353656,2.3666,149.01,148.95,6.7117]
[1751808354553,6.7103,148.99,148.95,6.7117]
[1751808358354,2.3666,149.01,148.93,1.67556926]
[1751808358957,9.0762,149.01,148.97,6.711]
[1751808359361,2.3065,149.04,148.95,48.24]
[1751808359661,6.7089,149.02,148.98,6.7103]
[1751808361255,2.3065,149.04,148.97,6.711]
[1751808361561,2.3065,149.04,148.95,48.24]
[1751808361860,6.7102,148.99,148.93,1.67556926]
[1751808362061,6.7102,148.99,148.93,49.91556926]
[1751808362362,6.7108,148.98,148.94,6.7123]
[1751808362655,2.3065,149.04,148.93,49.91556926]
[1751808362859,6.7118,148.96,148.93,49.91556926]
[1751808363057,48.24,149.01,148.93,49.91556926]
[1751808363259,2.3742,149.0,148.93,49.91556926]
[1751808363451,6.7113,148.97,148.93,56.62816926]
[1751808363959,2.3742,149.0,148.93,49.91556926]
[1751808364359,2.3742,149.0,148.93,1.67556926]
[1751808365161,6.7116,148.96,148.93,1.67556926]
[1751808365361,2.3742,149.0,148.93,1.67556926]
[1751808366961,6.7115,148.97,148.93,1.67556926]
[1751808367359,2.3742,149.0,148.93,1.67556926]
[1751808368264,6.7115,148.97,148.93,8.38846926]
[1751808368659,2.3742,149.0,148.93,1.67556926]
[1751808368861,6.7117,148.96,148.93,1.67556926]
[1751808371761,2.3742,149.0,148.93,1.67556926]
[1751808372267,6.7123,148.95,148.93,1.67556926]
[1751808372656,2.3742,149.0,148.93,1.67556926]
[1751808372860,6.7133,148.93,148.89,48.24]
[1751808373662,6.7134,148.92,148.89,48.24]
[1751808373862,6.7134,148.92,148.85,48.24]
[1751808374161,6.7134,148.92,148.88,6.715]
[1751808374368,6.7138,148.91,148.85,48.24]
[1751808374868,6.7138,148.91,148.87,6.7154]
[1751808376570,6.7142,148.9,148.87,6.7154]
[1751808377570,6.7139,148.91,148.87,6.7154]
[1751808377770,2.3906,148.94,148.85,48.24]
[1751808377971,2.3002,148.95,148.85,48.24]
[1751808378368,6.7129,148.93,148.9,6.7141]
[1751808378866,2.3002,148.95,148.85,48.24]
[1751808379669,47.9,148.97,148.85,48.24]
[1751808380166,6.712,148.95,148.92,6.7132]
[1751808380777,6.7117,148.96,148.93,6.7128]
[1751808381071,4.7812,148.99,148.9,47.9]
[1751808381271,8.40521863,148.98,148.9,47.9]
[1751808381470,6.7118,148.96,148.9,47.9]
[1751808381769,4.7812,148.99,148.87,47.9]
[1751808381976,8.41807078,148.98,148.89,6.7144]
[1751808382172,8.41807078,148.97,148.89,6.7144]
[1751808382371,4.7812,148.99,148.87,47.9]
[1751808382568,8.42098327,148.98,148.87,47.9]
[1751808382871,8.42098327,148.97,148.87,47.9]
[1751808383069,4.7812,148.99,148.87,47.9]
[1751808383372,6.7131,148.93,148.89,6.7144]
[1751808386277,6.7126,148.94,148.9,6.7142]
[1751808386467,14.12436722,148.99,148.87,47.9]
[1751808386776,8.44571249,148.98,148.87,47.9]
[1751808386963,6.7131,148.93,148.89,6.7144]
[1751808392174,6.7131,148.93,148.9,6.7141]
[1751808392872,4.49517109,148.97,148.89,6.7144]
[1751808393178,8.45926921,148.96,148.89,6.7144]
[1751808393475,14.12436722,148.99,148.89,6.7144]
[1751808393675,12.95512879,148.98,148.89,6.7144]
[1751808393872,6.7131,148.93,148.89,6.7144]
[1751808394066,14.12436722,148.99,148.88,6.715]
[1751808394271,12.95524533,148.98,148.88,6.715]
[1751808394473,12.95524533,148.97,148.88,6.715]
[1751808394674,9.34316722,148.98,148.88,6.715]
[1751808394675,12.95524533,148.96,148.88,6.715]
[1751808394874,8.45976257,148.95,148.88,6.715]
[1751808395076,2.3718,148.94,148.88,6.715]
[1751808395480,6.7136,148.92,148.88,6.715]
[1751808399784,6.7136,148.92,148.89,6.7145]
[1751808401385,2.3718,148.94,148.87,47.9]
[1751808401984,6.7131,148.93,148.89,6.7146]
[1751808402482,2.3718,148.94,148.89,6.7146]
[1751808402678,6.7136,148.92,148.89,6.7146]
[1751808402876,2.3718,148.94,148.88,6.715]
[1751808403184,6.7136,148.92,148.88,6.715]
[1751808403981,6.7138,148.91,148.87,54.6154]
[1751808404185,2.3718,148.94,148.87,47.9]
[1751808404382,8.44329635,148.93,148.87,47.9]
[1751808404583,6.714,148.91,148.87,47.9]
[1751808405486,6.714,148.91,148.87,54.6155]
[1751808407788,6.714,148.91,148.87,47.9]
[1751808408685,6.714,148.91,148.87,54.6154]
[1751808408884,6.7143,148.9,148.87,54.6154]
[1751808409190,6.7143,148.9,148.87,47.9]
[1751808409384,4.6352,148.93,148.83,47.42]
[1751808409687,6.7142,148.9,148.83,47.42]
[1751808409880,6.7142,148.9,148.86,6.7158]
[1751808410481,6.7142,148.9,148.83,47.42]
[1751808410683,6.714,148.91,148.87,6.7154]
[1751808410992,4.6352,148.93,148.87,6.7154]
[1751808411192,6.7142,148.91,148.87,6.7154]
[1751808411490,4.6352,148.93,148.87,6.7154]
[1751808411692,6.7142,148.91,148.87,6.7154]
[1751808412492,6.7143,148.9,148.87,6.7154]
[1751808413392,6.7143,148.9,148.86,6.7159]
[1751808416389,4.6352,148.93,148.83,47.42]
[1751808416595,6.7147,148.89,148.83,47.42]
[1751808417188,14.01928536,148.93,148.82,1.67556926]
[1751808417493,26.66731099,148.92,148.82,1.67556926]
[1751808417695,6.7159,148.87,148.82,1.67556926]
[1751808418398,6.7161,148.86,148.82,1.67556926]
[1751808419400,6.7167,148.85,148.82,1.67556926]
[1751808421102,6.7161,148.86,148.82,1.67556926]
[1751808421503,4.43545223,148.92,148.82,1.67556926]
[1751808421704,6.7164,148.86,148.82,1.67556926]
[1751808422406,6.7158,148.87,148.82,1.67556926]
[1751808422808,6.7158,148.87,148.83,6.717]
[1751808423201,6.7158,148.87,148.82,1.67556926]
[1751808424506,6.7158,148.87,148.84,6.7169]
[1751808424705,6.7161,148.86,148.82,1.67556926]
[1751808426611,6.7161,148.86,148.83,6.7171]
[1751808427510,6.7158,148.87,148.84,6.7169]
[1751808430110,6.7161,148.86,148.83,6.7172]
[1751808430305,4.6352,148.93,148.82,1.67556926]
[1751808430512,26.62545639,148.92,148.82,1.67556926]
[1751808430713,26.62545639,148.91,148.82,8.39316926]
[1751808430907,17.21898486,148.9,148.82,8.39316926]
[1751808431110,12.74746291,148.89,148.82,8.39316926]
[1751808431309,6.7163,148.86,148.82,8.39316926]
[1751808432509,6.7163,148.86,148.83,6.7174]
[1751808432814,6.7163,148.86,148.82,1.67556926]
[1751808433515,6.7158,148.87,148.82,1.67556926]
[1751808433917,6.7158,148.87,148.83,6.7171]
[1751808434318,6.7158,148.87,148.84,6.7169]
[1751808435509,6.7153,148.88,148.85,6.7165]
[1751808436220,6.7156,148.87,148.84,6.7168]
[1751808436820,4.6352,148.93,148.85,6.7165]
[1751808437021,17.14794801,148.92,148.85,6.7165]
[1751808437318,12.70321194,148.91,148.85,6.7165]
[1751808437519,4.6352,148.93,148.86,6.7159]
[1751808437520,6.7148,148.89,148.86,6.7159]
[1751808439011,6.7144,148.9,148.86,6.7159]
[1751808439216,6.7144,148.9,148.87,6.7155]
[1751808439415,6.7144,148.9,148.82,1.67556926]
[1751808439416,4.6352,148.93,148.82,1.67556926]
[1751808439616,17.15387883,148.92,148.85,6.7162]
[1751808439818,12.70754091,148.91,148.85,6.7162]
[1751808440120,4.6352,148.93,148.85,6.7162]
[1751808440319,6.715,148.89,148.85,6.7162]
[1751808441223,6.715,148.89,148.86,6.716]
[1751808444821,4.6352,148.93,148.82,1.67556926]
[1751808445022,12.72354753,148.92,148.82,1.67556926]
[1751808445220,8.43355576,148.91,148.82,1.67556926]
[1751808445420,4.6352,148.93,148.86,6.7157]
[1751808445619,12.74746691,148.92,148.82,1.67556926]
[1751808445822,8.43485916,148.91,148.82,1.67556926]
[1751808446025,6.7145,148.9,148.86,6.7156]
[1751808446528,6.7145,148.9,148.82,1.67556926]